bitfinex-derivatives/quotes_ETHF0:USTF0_20241023
["timestamp","ask_amount","ask_price","bid_price","bid_amount"]
[1729697124605,0.39305,2545.9,2545.7,0.39306]
[1729697124810,0.39305,2545.9,2545.6,1.8013]
[1729697125012,0.39305,2545.9,2545.7,0.39307]
[1729697125222,7.41245057,2546.2,2545.6,1.8013]
[1729697125524,3.78,2546.0,2545.6,1.8013]
[1729697125719,3.78,2546.0,2545.6,2.19438]
[1729697126026,4.21298391,2545.9,2545.2,3.2078]
[1729697126328,0.39314,2545.3,2545.1,0.39315]
[1729697126516,3.78,2545.5,2545.1,0.39315]
[1729697126724,0.39311,2545.5,2545.3,0.39312]
[1729697127214,0.39312,2545.4,2545.3,0.39312]
[1729697127423,0.39311,2545.5,2545.3,0.39312]
[1729697128213,4.3788041,2545.6,2545.2,3.2078]
[1729697128420,0.3931,2545.5,2545.4,0.39311]
[1729697128619,0.3931,2545.6,2545.4,0.39311]
[1729697128821,0.39312,2545.4,2545.3,0.39313]
[1729697129124,4.69271575,2545.5,2545.4,0.39312]
[1729697129327,0.39311,2545.5,2545.4,0.39312]
[1729697129526,0.39312,2545.4,2545.3,0.39312]
[1729697129719,3.78,2545.8,2545.2,3.2078]
[1729697129916,4.19043,2545.9,2545.2,3.2078]
[1729697129917,0.39311,2545.5,2545.4,0.39311]
[1729697130125,0.39311,2545.5,2545.2,3.2078]
[1729697130526,3.2078,2545.9,2545.2,3.2078]
[1729697130829,0.39311,2545.5,2545.4,0.39311]
[1729697131227,0.39311,2545.5,2545.3,0.39312]
[1729697131423,0.39312,2545.4,2545.3,0.39312]
[1729697131619,4.49780684,2545.4,2545.0,0.39317]
[1729697131824,1.37607,2545.1,2544.5,0.39325]
[1729697132029,3.2078,2545.0,2544.4,3.2078]
[1729697132229,7.55526457,2545.0,2544.4,3.2078]
[1729697132432,4.34746457,2545.0,2544.8,0.3932]
[1729697132725,4.74064457,2545.1,2544.9,0.39319]
[1729697132931,4.74064457,2545.1,2544.4,4.19096]
[1729697132932,4.34746457,2545.1,2544.4,4.19096]
[1729697133233,4.34746457,2545.1,2544.7,3.2078]
[1729697133234,4.40287468,2545.1,2544.7,3.2078]
[1729697133431,4.40287468,2545.1,2545.0,0.39317]
[1729697133729,4.40287468,2545.1,2544.7,3.2078]
[1729697133730,4.79602468,2545.2,2544.9,0.39318]
[1729697133930,1.7057,2545.3,2544.9,0.39318]
[1729697134229,4.46368712,2545.1,2544.9,0.39318]
[1729697134427,4.46368712,2545.2,2544.7,3.2078]
[1729697134626,0.39317,2545.1,2544.8,0.3932]
[1729697135027,4.46368712,2545.2,2544.7,3.2078]
[1729697135028,4.29360637,2545.0,2544.7,3.2078]
[1729697135326,4.29360637,2545.1,2544.9,0.39319]
[1729697135531,4.29360637,2545.1,2544.7,3.2078]
[1729697135726,0.39316,2545.2,2545.0,0.39317]
[1729697136031,4.21076559,2545.1,2545.0,0.39317]
[1729697136231,4.21076559,2545.1,2545.0,0.39318]
[1729697137425,4.21076559,2545.1,2545.0,4.32198]
[1729697137622,2.69424,2546.1,2545.1,0.9829]
[1729697137623,3.2078,2545.8,2545.1,0.9829]
[1729697137824,1.8491,2546.0,2545.7,3.2078]
[1729697138023,1.8491,2546.0,2544.9,1.7307]
[1729697138024,4.47298638,2546.0,2545.9,3.60084]
[1729697138230,5.0569,2546.5,2545.9,3.2078]
[1729697138431,0.39298,2546.3,2545.9,3.2078]
[1729697138631,4.86595638,2546.4,2545.9,3.2078]
[1729697138830,4.47298638,2546.4,2545.9,3.2078]
[1729697139039,0.39298,2546.3,2545.9,3.60083]
[1729697139221,9.23539638,2546.4,2545.7,1.7307]
[1729697139426,3.2078,2546.1,2545.5,3.2078]
[1729697139729,1.8491,2546.5,2545.3,0.39313]
[1729697139730,0.39312,2545.4,2545.3,0.39313]
[1729697139926,4.19045,2545.8,2545.2,45.8489]
[1729697140135,0.39311,2545.5,2545.3,0.39312]
[1729697140432,0.39312,2545.4,2545.3,0.39313]
[1729697140947,0.39313,2545.3,2545.2,3.60094]
[1729697141228,4.20632278,2545.3,2545.0,0.39316]
[1729697141433,0.39316,2545.1,2545.0,0.39316]
[1729697141823,4.20632278,2545.1,2544.9,3.2078]
[1729697142022,0.39318,2545.0,2544.9,3.60099]
[1729697142230,0.39318,2545.0,2544.9,0.39319]
[1729697142426,0.39317,2545.1,2545.0,0.39318]
[1729697142830,4.52205591,2545.1,2545.0,0.39318]
[1729697143230,4.12753238,2545.2,2544.7,1.8359]
[1729697143631,4.12753238,2545.3,2544.7,1.8359]
[1729697143837,4.12753238,2545.3,2544.9,0.39318]
[1729697144033,0.39316,2545.2,2545.0,0.39317]
[1729697144234,0.39316,2545.2,2544.7,1.8359]
[1729697144235,4.935636,2545.2,2545.1,0.39316]
[1729697144635,0.39317,2545.1,2544.9,0.39318]
[1729697144835,0.39318,2545.0,2544.9,0.39318]
[1729697145034,3.64983404,2545.0,2544.9,0.39318]
[1729697145241,0.39315,2545.2,2545.1,0.39316]
[1729697145433,0.39317,2545.1,2544.7,1.8359]
[1729697145633,4.31609076,2545.0,2544.9,0.39318]
[1729697145834,3.78,2545.4,2544.7,1.8359]
[1729697146041,0.39317,2545.1,2544.9,0.39318]
[1729697146340,4.33143217,2545.1,2544.9,0.39318]
[1729697146543,4.33143217,2545.3,2544.9,0.39318]
[1729697146544,0.39318,2545.0,2544.9,0.39318]
[1729697146734,4.72460217,2545.1,2544.9,0.39318]
[1729697146930,3.78,2545.4,2544.9,0.39318]
[1729697147130,0.39318,2545.0,2544.9,0.39318]
[1729697147354,4.55151833,2545.0,2544.9,0.39318]
[1729697147529,3.78,2545.4,2544.7,1.8359]
[1729697147733,4.15833833,2545.0,2544.6,3.2078]
[1729697147934,0.39324,2544.6,2544.5,0.39325]
[1729697148146,0.39324,2544.6,2544.4,0.39327]
[1729697148641,10.473,2544.9,2544.3,3.60108]
[1729697148642,4.45007525,2544.5,2544.3,3.60108]
[1729697148836,0.39327,2544.4,2544.3,3.2078]
[1729697149340,0.98305,2544.8,2544.3,3.2078]
[1729697149649,4.18775398,2544.7,2544.3,3.60107]
[1729697149842,0.39326,2544.5,2544.3,3.60107]
[1729697150140,4.26301401,2544.8,2544.3,3.2078]
[1729697150333,0.39327,2544.5,2544.3,3.2078]
[1729697150535,0.39327,2544.4,2544.3,3.2078]
[1729697151035,4.73538169,2544.4,2544.3,3.2078]
[1729697151837,0.39332,2544.1,2544.0,3.2078]
[1729697152039,12.05251169,2544.4,2544.0,3.2078]
[1729697152040,3.5593,2544.3,2544.0,3.2078]
[1729697152238,4.68411053,2544.1,2544.0,3.2078]
[1729697152440,0.39332,2544.1,2544.0,3.2078]
[1729697152642,4.68411053,2544.1,2544.0,3.2078]
[1729697152840,8.46411053,2544.1,2544.0,3.2078]
[1729697153142,8.46411053,2544.1,2544.0,3.60113]
[1729697153143,4.29079053,2544.1,2544.0,3.60113]
[1729697153344,3.78,2544.9,2544.0,7.1382]
[1729697153641,0.39332,2544.1,2544.0,3.2078]
[1729697153842,0.39336,2543.8,2543.6,0.39339]
[1729697154046,3.78,2544.1,2543.3,18.21632073]
[1729697154047,0.39335,2543.9,2543.7,41.19337]
[1729697154348,4.51142174,2543.8,2543.6,0.39339]
[1729697154532,4.51142174,2543.8,2543.3,19.19991073]
[1729697154533,4.11805174,2543.8,2543.7,0.39338]
[1729697154732,4.11805174,2543.9,2543.5,3.2078]
[1729697154940,4.7632,2544.4,2543.8,3.2078]
[1729697154941,3.78,2544.4,2543.8,3.2078]
[1729697155241,3.78,2544.4,2544.1,0.39332]
[1729697155242,4.52848817,2544.2,2544.1,0.39332]
[1729697155435,0.39333,2544.0,2543.9,0.39334]
[1729697155837,3.78,2544.4,2543.4,44.99135]
[1729697155838,3.2078,2544.3,2543.4,44.99135]
[1729697156037,0.39336,2543.9,2543.7,0.39337]
[1729697156238,0.39332,2544.1,2543.7,0.39337]
[1729697156438,4.54220178,2543.8,2543.7,0.39337]
[1729697156643,2.14074,2544.0,2543.9,0.39335]
[1729697156940,0.39334,2544.0,2543.9,0.39335]
[1729697157138,6.5106,2544.4,2543.6,0.98349]
[1729697157338,0.39334,2544.0,2543.9,0.39334]
[1729697158443,0.39333,2544.1,2544.0,0.39333]
[1729697158643,4.54678603,2544.3,2543.9,0.39334]
[1729697158948,4.5227935,2544.1,2543.4,44.99135]
[1729697159150,3.78,2544.2,2543.4,44.99135]
[1729697159449,0.39334,2544.0,2543.8,0.39336]
[1729697159841,3.78,2544.2,2543.8,0.39336]
[1729697159842,4.21180205,2543.9,2543.8,0.39336]
[1729697160346,0.39333,2544.1,2543.9,0.39335]
[1729697160347,4.29846533,2544.0,2543.9,0.39335]
[1729697160550,5.5274,2544.4,2543.5,0.98353]
[1729697160744,5.5274,2544.4,2543.7,3.2078]
[1729697160944,3.2078,2544.5,2544.2,0.39329]
[1729697160945,4.29846533,2544.3,2544.2,0.39329]
[1729697161150,1.8385,2544.6,2544.5,0.39326]
[1729697161447,1.8385,2544.6,2544.0,6.8342]
[1729697161448,4.17318,2545.0,2544.8,0.3932]
[1729697161649,0.3932,2544.9,2544.6,3.2078]
[1729697161848,4.12627363,2544.8,2544.7,0.39321]
[1729697162154,1.7704,2545.2,2544.7,0.39321]
[1729697162155,1.7704,2545.2,2544.7,0.98305]
[1729697162445,1.7704,2545.2,2545.1,0.39316]
[1729697162750,4.129923,2545.2,2545.1,0.39316]
[1729697163641,5.5504,2545.6,2545.1,3.9288]
[1729697163642,4.9782,2545.6,2545.1,3.9288]
[1729697163838,3.2078,2545.6,2545.2,3.2078]
[1729697164044,4.28078698,2545.5,2545.2,3.2078]
[1729697164244,4.28078698,2545.5,2545.4,0.39312]
[1729697164639,4.28078698,2545.5,2545.0,0.98294]
[1729697164640,4.67388698,2545.5,2545.3,0.39312]
[1729697164846,0.39312,2545.4,2545.2,0.39314]
[1729697165050,0.39317,2545.1,2544.9,3.60099]
[1729697165549,6.11419882,2545.3,2544.9,3.2078]
[1729697165747,4.18329882,2545.3,2544.9,3.2078]
[1729697165940,4.18329882,2545.3,2545.2,0.39315]
[1729697166143,5.7109,2545.7,2545.2,3.2078]
[1729697166144,8.9187,2545.7,2545.2,3.2078]
[1729697166354,9.31177,2545.7,2545.6,0.39309]
[1729697166548,4.27901092,2545.6,2545.3,1.8038]
[1729697166754,0.39311,2545.5,2545.4,0.39312]
[1729697166961,4.17311,2545.5,2545.4,0.39312]
[1729697167142,4.17311,2545.5,2545.3,2.19692]
[1729697167448,1.9309,2545.7,2545.6,0.39309]
[1729697167848,4.10526118,2545.6,2545.3,1.8038]
[1729697168049,4.10526118,2545.6,2544.9,0.98298]
[1729697168050,0.39313,2545.4,2545.1,0.39315]
[1729697168359,4.18912672,2545.3,2544.9,3.2078]
[1729697168551,3.78,2545.0,2544.6,3.2078]
[1729697168747,0.3932,2544.9,2544.7,0.39322]
[1729697168953,0.39322,2544.7,2544.6,3.2078]
[1729697169447,4.54695355,2544.7,2544.6,3.2078]
[1729697170049,4.15373355,2544.7,2544.6,3.2078]
[1729697170559,2.90873,2545.1,2544.8,0.39321]
[1729697170560,4.47096806,2544.9,2544.8,0.39321]
[1729697170751,1.7439,2545.2,2545.1,0.39316]
[1729697170952,5.5239,2545.2,2544.7,1.8699]
[1729697171156,4.43008388,2545.1,2544.7,1.8699]
[1729697171356,0.39316,2545.1,2544.9,0.39319]
[1729697171555,0.39318,2545.0,2544.9,0.39319]
[1729697171757,4.82326388,2545.0,2544.9,0.39319]
[1729697172058,1.53858388,2545.1,2545.0,4.32278]
[1729697172255,3.2078,2545.7,2545.0,4.66935]
[1729697172455,4.13584886,2545.4,2545.3,0.39313]
[1729697172757,0.39309,2545.6,2545.5,0.39309]
[1729697173056,0.39309,2545.6,2545.2,3.2078]
[1729697173057,1.96493,2546.3,2545.4,0.39312]
[1729697173263,0.39311,2545.5,2545.4,0.39311]
[1729697173553,8.15630245,2545.8,2545.4,0.39311]
[1729697173759,0.3931,2545.6,2545.5,3.2078]
[1729697175360,4.37630245,2545.7,2545.6,0.39309]
[1729697175567,0.39298,2546.3,2546.1,0.393]
[1729697175861,4.76231,2546.7,2546.4,0.39295]
[1729697175862,0.39294,2546.6,2546.4,0.39295]
[1729697176169,0.39295,2546.5,2546.3,0.39298]
[1729697176360,0.39296,2546.5,2546.3,0.39298]
[1729697176555,4.40766148,2546.4,2546.2,3.2078]
[1729697176759,1.8347,2546.8,2546.3,1.9432]
[1729697177057,1.8347,2546.8,2546.7,0.39292]
[1729697177362,6.63941284,2546.8,2546.6,0.39292]
[1729697178064,6.63941284,2546.8,2546.5,3.60074]
[1729697178065,6.24650284,2546.8,2546.5,3.60074]
[1729697178263,0.39292,2546.7,2546.5,3.60074]
[1729697178661,6.63941284,2546.8,2546.5,3.60074]
[1729697179058,6.63941284,2546.8,2546.6,0.39293]
[1729697179560,6.24650284,2546.8,2546.5,3.2078]
[1729697179762,0.39296,2546.4,2546.2,3.60079]
[1729697179961,0.39298,2546.3,2546.2,3.2078]
[1729697180258,4.69838199,2546.3,2546.2,3.2078]
[1729697180465,0.39298,2546.3,2546.2,3.2078]
[1729697180659,4.69838199,2546.3,2546.2,3.2078]
[1729697180860,0.39303,2546.0,2545.8,0.39305]
[1729697181096,0.39301,2546.1,2545.9,0.39303]
[1729697181461,4.20613919,2546.0,2545.9,0.39303]
[1729697182260,1.9497,2546.7,2545.9,7.1358]
[1729697182471,1.8842,2547.0,2546.3,3.78]
[1729697182759,4.08489055,2546.9,2546.5,3.78]
[1729697182962,4.08489055,2546.9,2546.8,0.3929]
[1729697184158,4.08489055,2546.9,2546.7,0.3929]
[1729697184359,4.08489055,2546.9,2546.8,0.3929]
[1729697185362,4.08489055,2546.9,2546.8,8.0993]
[1729697185660,3.2078,2547.1,2547.0,0.39287]
[1729697186060,3.2078,2547.1,2547.0,4.31927]
[1729697186464,7.58515184,2547.1,2546.6,1.901]
[1729697186768,0.39289,2546.9,2546.7,0.39292]
[1729697186967,12.34731184,2547.1,2546.2,3.2078]
[1729697187166,0.39294,2546.6,2546.3,0.39297]
[1729697187465,4.5531,2547.0,2546.4,0.39295]
[1729697187466,8.07423115,2547.0,2546.4,0.39295]
[1729697187762,0.39292,2546.7,2546.5,0.39294]
[1729697187964,0.39302,2546.0,2545.9,3.2078]
[1729697188163,3.78,2546.3,2545.9,3.2078]
[1729697188365,0.39302,2546.0,2545.9,3.2078]
[1729697188562,3.78,2546.3,2545.9,3.2078]
[1729697188563,0.39302,2546.1,2545.9,3.60084]
[1729697189067,0.39302,2546.0,2545.9,3.2078]
[1729697189267,0.39302,2546.0,2545.9,3.60084]
[1729697190761,0.39301,2546.1,2546.0,0.39301]
[1729697190968,0.39302,2546.0,2545.9,3.60083]
[1729697191166,3.78,2546.6,2545.9,3.2078]
[1729697191382,0.393,2546.2,2546.1,0.393]
[1729697191769,4.30420454,2546.5,2546.1,3.9272]
[1729697191968,3.78,2546.7,2546.3,3.2078]
[1729697192266,0.39298,2546.3,2546.2,1.938]
[1729697192569,0.39295,2546.5,2546.4,0.39295]
[1729697192763,0.39295,2546.5,2546.4,0.39296]
[1729697193362,3.78,2546.8,2546.3,40.8]
[1729697193563,0.39294,2546.6,2546.5,0.39294]
[1729697193774,4.87420151,2546.7,2546.6,0.39292]
[1729697193975,4.87420151,2546.7,2546.3,40.8]
[1729697193976,3.2078,2547.4,2546.5,3.2078]
[1729697194180,0.39286,2547.1,2546.6,0.98233]
[1729697194369,0.39286,2547.1,2547.0,0.39287]
[1729697194767,4.77457499,2547.1,2547.0,0.39287]
[1729697194967,4.38171499,2547.1,2547.0,0.39287]
[1729697195363,4.44004632,2547.2,2547.1,0.39284]
[1729697195570,3.2078,2547.7,2547.1,3.2078]
[1729697195876,4.44004632,2547.5,2547.1,3.2078]
[1729697196070,0.39279,2547.5,2547.4,0.39281]
[1729697196680,3.2078,2547.7,2547.5,0.39279]
[1729697196681,0.39278,2547.6,2547.5,0.39279]
[1729697197070,4.34167612,2547.6,2547.4,0.3928]
[1729697197274,4.73446612,2547.6,2547.4,0.3928]
[1729697197786,4.73446612,2547.6,2547.0,4.76217]
[1729697197787,4.34167612,2547.6,2547.5,0.39279]
[1729697198480,4.34167612,2547.6,2547.1,3.2078]
[1729697198685,4.34167612,2547.6,2547.3,0.39281]
[1729697198686,0.39279,2547.5,2547.3,0.39281]
[1729697199582,0.39279,2547.5,2547.0,0.98217]
[1729697199783,0.39279,2547.5,2547.4,0.39281]
[1729697200288,4.34167612,2547.6,2547.4,0.39281]
[1729697200476,4.34167612,2547.6,2547.1,3.2078]
[1729697200673,8.12167612,2547.6,2547.3,0.39282]
[1729697200873,4.34167612,2547.6,2547.3,0.39282]
[1729697201082,0.39282,2547.3,2547.2,0.39283]
[1729697201682,0.39283,2547.3,2547.1,0.39284]
[1729697201888,4.34167612,2547.6,2546.9,1.8161]
[1729697202087,0.39283,2547.3,2547.2,0.39284]
[1729697202379,5.32363612,2547.6,2546.9,1.8161]
[1729697202380,0.39284,2547.2,2547.1,0.39284]
[1729697202581,0.39287,2547.0,2546.9,1.8161]
[1729697202774,4.76216,2547.1,2546.4,5.1699]
[1729697202976,0.39295,2546.5,2546.4,5.55456]
[1729697203483,0.39295,2546.5,2546.4,5.1616]
[1729697204583,0.39295,2546.5,2546.4,5.55456]
[1729697204781,3.2078,2547.1,2546.4,9.0888]
[1729697204984,3.78,2547.2,2546.8,0.39289]
[1729697204985,0.3929,2546.9,2546.8,0.39289]
[1729697205188,2.92592,2547.2,2546.9,0.39288]
[1729697205189,4.15150919,2547.0,2546.9,0.39288]
[1729697205482,0.39289,2546.9,2546.8,0.39289]
[1729697206085,0.39288,2547.0,2546.9,0.39288]
[1729697206387,0.39284,2547.2,2547.1,0.39284]
[1729697206584,3.2078,2547.4,2546.8,3.2078]
[1729697206787,4.52785926,2547.2,2546.8,3.2078]
[1729697206984,0.39288,2547.0,2546.9,0.39288]
[1729697207182,0.3929,2546.8,2546.7,1.942]
[1729697207378,0.39289,2546.9,2546.8,0.39289]
[1729697208192,2.78947,2547.3,2546.7,1.942]
[1729697208494,0.39288,2547.0,2546.9,0.39288]
[1729697208690,4.40270951,2547.2,2546.7,1.942]
[1729697208992,4.79557951,2547.0,2546.9,0.39288]
[1729697209193,0.39286,2547.1,2547.0,0.39286]
[1729697209881,0.39285,2547.2,2547.1,0.39285]
[1729697210282,4.33842594,2547.2,2547.1,0.39285]
[1729697210679,4.73126594,2547.2,2547.1,0.39285]
[1729697210883,4.33842594,2547.2,2547.0,0.39286]
[1729697211082,4.33842594,2547.2,2547.1,0.39285]
[1729697211490,4.73126594,2547.2,2547.1,0.39285]
[1729697212084,4.73126594,2547.2,2547.0,0.39286]
[1729697212285,3.2078,2547.4,2546.9,0.98221]
[1729697212487,3.2078,2547.4,2547.1,0.39284]
[1729697212681,3.2078,2547.4,2547.0,1.9207]
[1729697212682,0.39285,2547.1,2547.0,1.9207]
[1729697213389,4.258467,2547.3,2546.8,3.2078]
[1729697213581,7.96983,2547.4,2546.8,3.2078]
[1729697213582,0.39288,2546.9,2546.8,3.2078]
[1729697214292,4.18985,2547.4,2546.8,3.2078]
[1729697214497,0.39287,2547.0,2546.9,0.39288]
[1729697214691,0.39288,2546.9,2546.8,3.6007]
[1729697216890,0.39288,2546.9,2546.8,3.2078]
[1729697217085,0.39288,2546.9,2546.8,3.6007]
[1729697217495,0.39288,2547.0,2546.9,0.39287]
[1729697217996,4.87161872,2547.0,2546.9,0.39287]
[1729697218196,0.39288,2547.0,2546.9,0.39287]
[1729697218398,0.39292,2546.7,2546.6,2.23452]
[1729697218587,0.39292,2546.7,2546.1,6.63617519]
[1729697218588,3.78,2546.7,2546.1,3.2078]
[1729697218788,3.78,2546.5,2546.1,3.2078]
[1729697218995,0.39299,2546.3,2546.2,0.39297]
[1729697219399,4.4523851,2546.4,2546.3,0.39298]
[1729697219586,3.2078,2546.7,2546.1,4.19031]
[1729697219792,0.39296,2546.6,2546.5,0.39293]
[1729697219991,4.66179846,2546.6,2546.5,0.39293]
[1729697220493,0.39293,2546.7,2546.6,0.39293]
[1729697220691,0.39291,2546.8,2546.7,0.39291]
[1729697221195,0.39293,2546.7,2546.6,0.39293]
[1729697221393,0.39291,2546.8,2546.7,0.39291]
[1729697221592,1.8377,2547.0,2546.4,6.60181]
[1729697221786,0.98209,2547.3,2546.4,6.60181]
[1729697221787,0.39288,2546.9,2546.5,0.98236]
[1729697222095,4.9410885,2547.1,2547.0,0.39286]
[1729697222693,4.5482285,2547.1,2546.5,0.98237]
[1729697223089,0.39287,2547.0,2546.9,0.39287]
[1729697223490,0.39287,2547.0,2546.7,0.39292]
[1729697223699,0.39286,2547.1,2547.0,0.39287]
[1729697224001,3.2078,2547.2,2546.7,3.60072]
[1729697224204,3.60064,2547.2,2547.1,0.39285]
[1729697224701,0.39286,2547.1,2547.0,0.39286]
[1729697224889,3.60064,2547.2,2547.1,0.39285]
[1729697226596,0.39286,2547.1,2547.0,0.39286]
[1729697227097,0.39288,2547.0,2546.9,0.39288]
[1729697227295,0.39288,2547.0,2546.5,0.98235]
[1729697227296,3.2078,2547.2,2546.6,0.98231]
[1729697227496,0.39286,2547.1,2547.0,0.39286]
[1729697227802,2.93733,2547.4,2546.7,3.2078]
[1729697227803,4.3865352,2547.3,2546.7,3.2078]
[1729697228099,4.3865352,2547.3,2546.7,6.9878]
[1729697228296,4.3865352,2547.3,2546.7,7.97008]
[1729697228699,0.39285,2547.2,2547.1,0.39284]
[1729697229191,4.3865352,2547.3,2546.8,0.98226]
[1729697229391,4.3865352,2547.3,2546.8,0.39289]
[1729697229392,0.39289,2546.9,2546.8,0.39289]
[1729697230007,3.2078,2547.3,2546.4,8.8272]
[1729697230306,4.18988,2547.3,2546.4,8.8272]
[1729697230493,0.39291,2546.8,2546.7,0.3929]
[1729697231105,3.78,2547.2,2546.4,6.9596]
[1729697231313,0.98222,2546.9,2546.4,6.9596]
[1729697231491,1.9485,2547.0,2546.1,3.2078]
[1729697231492,0.98227,2546.8,2546.1,3.2078]
[1729697231698,0.39299,2546.3,2546.2,0.39298]
[1729697232004,0.39299,2546.3,2546.2,0.39299]
[1729697232200,0.39299,2546.2,2546.1,3.6008]
[1729697232400,0.98234,2546.6,2546.1,3.2078]
[1729697232605,0.39298,2546.3,2546.2,0.39297]
[1729697233200,0.39297,2546.4,2546.3,0.39296]
[1729697233604,0.39299,2546.3,2546.2,0.39298]
[1729697233903,4.12167071,2546.4,2546.3,0.39298]
[1729697234111,0.39293,2546.7,2546.6,0.39292]
[1729697234503,4.89735186,2546.7,2546.6,0.39292]
[1729697234797,4.89735186,2546.7,2546.5,0.39294]
[1729697234798,0.39295,2546.6,2546.5,0.39294]
[1729697237104,4.50442186,2546.7,2546.1,3.2078]
[1729697237400,0.39297,2546.4,2546.3,0.39296]
[1729697238606,8.10514186,2546.7,2546.6,0.39293]
[1729697238901,1.9485,2547.0,2546.9,0.39288]
[1729697239106,0.39287,2547.0,2546.9,0.39288]
[1729697239302,4.93278526,2547.0,2546.9,0.39288]
[1729697239797,0.39289,2546.9,2546.8,0.39288]
[1729697240108,4.93279526,2547.0,2546.9,0.39288]
[1729697240402,4.93279526,2547.0,2546.7,1.9872]
[1729697240403,0.3929,2546.8,2546.7,2.38011]
[1729697241001,0.98236,2546.6,2546.1,3.2078]
[1729697241212,0.39299,2546.2,2546.1,3.2078]
[1729697242608,0.39299,2546.2,2546.1,3.60081]
[1729697242797,0.39299,2546.2,2546.1,3.2078]
[1729697243512,0.39299,2546.2,2546.1,3.60081]
[1729697244107,4.76237,2546.5,2546.1,3.2078]
[1729697244309,4.98606075,2546.7,2546.1,3.2078]
[1729697244310,4.70522,2546.7,2546.1,3.2078]
[1729697244611,0.39297,2546.4,2546.3,0.39297]
[1729697244805,0.39298,2546.3,2546.2,0.39298]
[1729697245204,0.39298,2546.3,2546.2,4.32018]
[1729697246200,4.38209251,2546.6,2546.5,0.39295]
[1729697246401,3.48364716,2547.1,2546.3,1.9708]
[1729697246402,5.1234,2547.1,2546.3,1.9708]
[1729697246600,5.1234,2547.1,2546.5,3.2078]
[1729697246601,1.9156,2547.1,2546.5,3.2078]
[1729697246814,1.9156,2547.1,2547.0,0.39287]
[1729697247002,2.30845,2547.1,2547.0,0.39287]
[1729697247202,6.49892849,2547.1,2547.0,0.39287]
[1729697247505,6.49893849,2547.1,2547.0,0.39287]
[1729697247711,0.39288,2546.9,2546.8,0.39289]
[1729697247900,0.39288,2546.9,2546.6,2.81463]
[1729697247901,0.39288,2547.0,2546.9,0.39287]
[1729697248306,0.39288,2547.0,2546.9,0.39288]
[1729697248506,6.10607849,2547.1,2546.6,1.8323]
[1729697248716,6.10607849,2547.1,2546.8,0.39289]
[1729697248717,0.3929,2546.9,2546.8,0.39289]
[1729697249803,6.10607849,2547.1,2546.6,2.81463]
[1729697250005,0.39287,2547.0,2546.9,0.39287]
[1729697250206,9.94904,2547.4,2546.8,3.2078]
[1729697250507,0.39287,2547.1,2547.0,0.39285]
[1729697250707,4.37973914,2547.3,2546.8,3.2078]
[1729697250902,0.39284,2547.3,2547.2,0.39284]
[1729697251602,5.187,2547.4,2547.0,40.8]
[1729697251808,0.39285,2547.2,2547.1,0.39284]
[1729697252217,4.6514164,2547.3,2547.2,0.39284]
[1729697252514,0.39283,2547.3,2547.2,0.39284]
[1729697253106,0.39284,2547.2,2547.1,0.39284]
[1729697253413,0.39283,2547.3,2547.2,0.39283]
[1729697253613,0.39286,2547.1,2547.0,0.39287]
[1729697253913,5.187,2547.4,2546.9,2.0733]
[1729697254113,0.39284,2547.2,2547.1,0.39284]
[1729697256008,12.13395905,2547.2,2546.6,1.8323]
[1729697256212,4.42835905,2547.2,2547.1,0.39285]
[1729697256410,1.9618,2547.5,2547.2,0.39282]
[1729697256411,0.39283,2547.3,2547.2,0.39282]
[1729697256606,0.39288,2547.1,2547.0,0.39286]
[1729697256807,0.39288,2547.1,2547.0,3.60066]
[1729697257114,0.39284,2547.2,2547.1,0.39284]
[1729697257316,0.39285,2547.1,2547.0,3.60066]
[1729697257513,0.39285,2547.2,2547.1,0.39284]
[1729697258019,0.39284,2547.3,2547.2,0.39282]
[1729697259214,4.73871236,2547.4,2547.3,0.39282]
[1729697259521,0.39282,2547.4,2547.3,0.39282]
[1729697260318,0.39285,2547.2,2547.1,0.39283]
[1729697260617,0.39282,2547.4,2547.3,0.39281]
[1729697261221,1.9618,2547.5,2547.0,4.18995]
[1729697261222,0.39285,2547.3,2547.2,0.39283]
[1729697261918,0.39285,2547.3,2546.7,44.85227]
[1729697261919,0.39284,2547.2,2546.8,3.2078]
[1729697262125,0.39298,2546.3,2546.2,3.60078]
[1729697262315,0.39298,2546.3,2546.2,3.2078]
[1729697262611,0.39297,2546.4,2546.3,0.39296]
[1729697263411,4.13796325,2546.5,2546.4,0.39296]
[1729697263816,5.0616,2547.0,2546.4,3.9272]
[1729697264024,0.39294,2546.6,2546.5,0.39293]
[1729697264719,4.26069369,2546.8,2546.4,0.39295]
[1729697264720,0.39297,2546.5,2546.4,0.39295]
[1729697264921,0.9823,2546.7,2546.2,3.60078]
[1729697264922,0.39298,2546.3,2546.2,3.60078]
[1729697265216,0.39298,2546.3,2545.5,1.02731597]
[1729697265217,0.3931,2545.5,2545.4,3.2078]
[1729697265516,7.57940031,2545.5,2545.4,3.2078]
[1729697265925,11.50820031,2545.5,2545.4,3.2078]
[1729697266222,0.39315,2545.2,2545.1,3.2078]
[1729697266417,4.17315,2545.2,2545.1,3.2078]
[1729697266729,8.50375706,2545.2,2545.1,3.2078]
[1729697267813,8.11060706,2545.2,2544.0,2.99396597]
[1729697268016,3.78,2544.4,2543.8,3.2078]
[1729697268420,3.78,2544.4,2543.9,40.8]
[1729697269125,0.39331,2544.2,2543.9,41.19334]
[1729697269611,0.39333,2544.1,2543.9,40.8]
[1729697270121,0.39333,2544.1,2543.9,44.7312]
[1729697270922,0.39333,2544.1,2543.9,45.12454]
[1729697271115,0.39333,2544.1,2543.9,44.7312]
[1729697271320,0.39333,2544.1,2543.9,45.12455]